fUST/lending_fUST_20250131
["ID","MTS","AMOUNT","RATE_DAILY","PERIOD"]
[351051571,1738308642425,-500.0,0.00016712,2]
[351051572,1738308642435,-500.0,0.00016848,2]
[351051573,1738308642444,-500.0,0.00016848,2]
[351051574,1738308642454,-500.0,0.00016849,2]
[351051575,1738308642464,-500.0,0.00016849,2]
[351051576,1738308642473,-501.8853671,0.00016849,2]
[351051577,1738308642483,-500.0,0.00016849,2]
[351051578,1738308642492,-488.46,0.00016849,2]
[351051579,1738308642501,-500.0,0.00016849,2]
[351051580,1738308642511,-500.0,0.00016849,2]
[351051581,1738308642521,-500.0,0.00016849,2]
[351051582,1738308642531,-500.0,0.00016849,2]
[351051583,1738308642541,-500.0,0.00016849,2]
[351051584,1738308642550,-207.73497126,0.00016849,2]
[351051585,1738308642559,-500.0,0.00016849,2]
[351051586,1738308642570,-500.0,0.00016849,2]
[351051587,1738308642579,-500.0,0.00016849,2]
[351051588,1738308642589,-500.0,0.00016849,2]
[351051589,1738308642599,-500.0,0.00016849,2]
[351051590,1738308642608,-500.0,0.00016849,2]
[351051591,1738308642618,-176.4,0.00016849,2]
[351051592,1738308642627,-500.0,0.00016849,2]
[351051593,1738308642637,-500.0,0.00016849,2]
[351051595,1738308642646,-307.14404555,0.00016849,2]
[351051598,1738308642656,-500.0,0.00016849,2]
[351051600,1738308642666,-500.0,0.00016849,2]
[351051601,1738308642675,-502.106163,0.00016849,2]
[351051602,1738308642685,-576.22961746,0.00016849,2]
[351051603,1738308642695,-500.0,0.00016849,2]
[351051604,1738308642705,-500.0,0.00016849,2]
[351051605,1738308642714,-500.0,0.00016849,2]
[351051606,1738308642723,-500.0,0.00016849,2]
[351051607,1738308642732,-500.0,0.00016849,2]
[351051608,1738308642742,-500.0,0.00016849,2]
[351051609,1738308642750,-500.0,0.00016849,2]
[351051610,1738308642759,-500.0,0.00016849,2]
[351051611,1738308642769,-500.0,0.00016849,2]
[351051613,1738308642778,-500.0,0.00016849,2]
[351051614,1738308642787,-500.0,0.00016849,2]
[351051615,1738308642796,-500.0,0.00016849,2]
[351051616,1738308642809,-500.0,0.00016849,2]
[351051617,1738308642818,-500.0,0.00016849,2]
[351051618,1738308642827,-500.0,0.00016849,2]
[351051619,1738308642836,-500.0,0.00016849,2]
[351051620,1738308642846,-500.0,0.00016849,2]
[351051621,1738308642855,-500.0,0.00016849,2]
[351051622,1738308642865,-500.0,0.00016849,2]
[351051623,1738308642877,-267.13607877,0.00016849,2]
[351051624,1738308642888,-500.0,0.00016849,2]
[351051625,1738308642899,-500.0,0.00016849,2]
[351051626,1738308642909,-500.0,0.00016849,2]
[351051627,1738308642918,-500.0,0.00016849,2]
[351051628,1738308642927,-500.0,0.00016849,2]
[351051629,1738308642937,-500.0,0.00016849,2]
[351051630,1738308642947,-500.0,0.00016849,2]
[351051631,1738308642957,-5330.68,0.00016849,2]
[351051633,1738308642967,-500.0,0.00016849,2]
[351051635,1738308642976,-500.0,0.00016849,2]
[351051637,1738308642985,-500.0,0.00016849,2]
[351051638,1738308642996,-500.0,0.00016849,2]
[351051639,1738308643005,-500.0,0.00016849,2]
[351051640,1738308643015,-500.0,0.00016849,2]
[351051641,1738308643024,-500.0,0.00016849,2]
[351051642,1738308643034,-500.0,0.00016849,2]
[351051643,1738308643043,-666.86,0.00016849,2]
[351051644,1738308643053,-500.0,0.00016849,2]
[351051645,1738308643062,-500.0,0.00016849,2]
[351051646,1738308643071,-500.0,0.00016849,2]
[351051647,1738308643081,-500.0,0.00016849,2]
[351051648,1738308643091,-500.0,0.00016849,2]
[351051649,1738308643100,-500.0,0.00016849,2]
[351051650,1738308643109,-1268.91,0.00016849,2]
[351051651,1738308643118,-500.0,0.00016849,2]
[351051652,1738308643127,-500.0,0.00016849,2]
[351051653,1738308643137,-500.0,0.00016849,2]
[351051654,1738308643146,-500.0,0.00016849,2]
[351051655,1738308643155,-500.0,0.00016849,2]
[351051656,1738308643164,-500.0,0.00016849,2]
[351051657,1738308643174,-500.0,0.00016849,2]
[351051658,1738308643183,-500.0,0.00016849,2]
[351051659,1738308643193,-500.0,0.00016849,2]
[351051660,1738308643203,-597.48,0.00016849,2]
[351051661,1738308643212,-482.64245468,0.00016849,2]
[351051662,1738308643222,-3401.2,0.00016849,2]
[351051663,1738308643231,-500.0,0.00016849,2]
[351051664,1738308643240,-504.86,0.00016849,2]
[351051665,1738308643249,-500.0,0.00016849,2]
[351051666,1738308643259,-500.0,0.00016849,2]
[351051667,1738308643268,-262.4,0.00016849,2]
[351051668,1738308643277,-500.0,0.00016849,2]
[351051669,1738308643286,-500.0,0.00016849,2]
[351051670,1738308643296,-154.28786801,0.00016849,2]
[351051671,1738308643305,-7437.37,0.00016849,2]
[351051672,1738308643315,-500.0,0.00016849,2]
[351051673,1738308643326,-500.0,0.00016849,2]
[351051674,1738308643335,-500.0,0.00016849,2]
[351051675,1738308643344,-500.0,0.00016849,2]
[351051676,1738308643354,-500.0,0.00016849,2]
[351051677,1738308643363,-540.18,0.00016849,2]
[351051678,1738308643373,-500.0,0.00016849,2]
[351051679,1738308643382,-500.0,0.00016913,2]
[351051680,1738308643392,-500.0,0.00016985,2]
[351051681,1738308643401,-500.0,0.00016985,2]
[351051682,1738308643411,-500.0,0.00016986,2]
[351051683,1738308643420,-500.0,0.00016986,2]
[351051684,1738308643430,-500.0,0.00016986,2]
[351051685,1738308643439,-500.0,0.00016986,2]
[351051686,1738308643448,-392.22901964,0.00016986,2]
[351051687,1738308643459,-500.0,0.00016986,2]
[351051688,1738308643468,-500.0,0.00016986,2]
[351051689,1738308643478,-500.0,0.00016986,2]
[351051690,1738308643487,-500.0,0.00016986,2]
[351051691,1738308643497,-500.0,0.00016986,2]
[351051692,1738308643507,-536.42530235,0.00016986,2]
[351051693,1738308643517,-500.0,0.00016986,2]
[351051694,1738308643526,-500.0,0.00016986,2]
[351051695,1738308643536,-500.0,0.00016986,2]
[351051696,1738308643545,-500.0,0.00016986,2]
[351051697,1738308643554,-500.0,0.00016986,2]
[351051698,1738308643564,-500.0,0.00016986,2]
[351051699,1738308643575,-500.0,0.00016986,2]
[351051700,1738308643584,-500.0,0.00016986,2]
[351051701,1738308643594,-500.0,0.00016986,2]
[351051702,1738308643604,-500.0,0.00016986,2]
[351051703,1738308643614,-500.0,0.00016986,2]
[351051704,1738308643623,-500.0,0.00016986,2]
[351051705,1738308643634,-500.0,0.00016986,2]
[351051706,1738308643643,-500.0,0.00016986,2]
[351051707,1738308643652,-500.0,0.00016986,2]
[351051708,1738308643662,-500.0,0.00016986,2]
[351051709,1738308643671,-500.0,0.00016986,2]
[351051710,1738308643681,-500.0,0.00016986,2]
[351051711,1738308643690,-500.0,0.00016986,2]
[351051712,1738308643699,-500.0,0.00016986,2]
[351051713,1738308643709,-5330.68,0.00016986,2]
[351051714,1738308643718,-500.0,0.00016986,2]
[351051715,1738308643728,-500.0,0.00016986,2]
[351051716,1738308643737,-500.0,0.00016986,2]
[351051717,1738308643746,-500.0,0.00016986,2]
[351051718,1738308643756,-500.0,0.00016986,2]
[351051719,1738308643765,-500.0,0.00016986,2]
[351051720,1738308643775,-500.0,0.00016986,2]
[351051721,1738308643784,-500.0,0.00016986,2]
[351051722,1738308643793,-666.86,0.00016986,2]
[351051723,1738308643803,-500.0,0.00016986,2]
[351051724,1738308643819,-366.68533457,0.00016986,2]
[351051725,1738308643828,-500.0,0.00016986,2]
[351051726,1738308643837,-491.77,0.00016986,2]
[351051727,1738308643847,-1268.91,0.00016986,2]
[351051728,1738308643858,-500.0,0.00016986,2]
[351051729,1738308643867,-249.1,0.00016986,2]
[351051730,1738308643876,-500.0,0.00016986,2]
[351051731,1738308643887,-500.0,0.00016986,2]
[351051732,1738308643897,-500.0,0.00016986,2]
[351051733,1738308643906,-500.0,0.00016986,2]
[351051734,1738308643916,-500.0,0.00016986,2]
[351051735,1738308643925,-597.48,0.00016986,2]
[351051736,1738308643934,-3401.2,0.00016986,2]
[351051737,1738308643943,-500.0,0.00016986,2]
[351051738,1738308643953,-500.0,0.00016986,2]
[351051739,1738308643962,-500.0,0.00016986,2]
[351051740,1738308643971,-500.0,0.00016986,2]
[351051741,1738308643981,-500.0,0.00016986,2]
[351051742,1738308643990,-7437.37,0.00016986,2]
[351051743,1738308643999,-500.0,0.00016986,2]
[351051744,1738308644008,-500.0,0.00016986,2]
[351051745,1738308644018,-500.0,0.00016986,2]
[351051746,1738308644028,-500.0,0.00016986,2]
[351051747,1738308644037,-540.18,0.00016986,2]
[351051748,1738308644046,-500.0,0.00016986,2]
[351051749,1738308644055,-500.0,0.00017122,2]
[351051750,1738308644064,-500.0,0.00017123,2]
[351051751,1738308644075,-500.0,0.00017123,2]
[351051752,1738308644084,-500.0,0.00017123,2]
[351051753,1738308644093,-500.0,0.00017123,2]
[351051754,1738308644102,-500.0,0.00017123,2]
[351051755,1738308644111,-500.0,0.00017123,2]
[351051756,1738308644216,-500.0,0.00017123,2]
[351051757,1738308644226,-500.0,0.00017123,2]
[351051758,1738308644236,-500.0,0.00017123,2]
[351051759,1738308644245,-500.0,0.00017123,2]
[351051760,1738308644255,-500.0,0.00017123,2]
[351051761,1738308644264,-500.0,0.00017123,2]
[351051762,1738308644273,-300.6764344,0.00017123,2]
[351051763,1738308644282,-500.0,0.00017123,2]
[351051764,1738308644291,-500.0,0.00017123,2]
[351051765,1738308644300,-500.0,0.00017123,2]
[351051766,1738308644309,-500.0,0.00017123,2]
[351051767,1738308644320,-500.0,0.00017123,2]
[351051768,1738308644330,-500.0,0.00017123,2]
[351051769,1738308644339,-500.0,0.00017123,2]
[351051770,1738308644348,-500.0,0.00017123,2]
[351051771,1738308644358,-500.0,0.00017123,2]
[351051772,1738308644367,-500.0,0.00017123,2]
[351051773,1738308644377,-500.0,0.00017123,2]
[351051774,1738308644386,-5330.68,0.00017123,2]
[351051775,1738308644396,-500.0,0.00017123,2]
[351051776,1738308644405,-500.0,0.00017123,2]
[351051777,1738308644415,-500.0,0.00017123,2]
[351051778,1738308644424,-500.0,0.00017123,2]
[351051779,1738308644434,-500.0,0.00017123,2]
[351051780,1738308644442,-500.0,0.00017123,2]
[351051781,1738308644451,-500.0,0.00017123,2]
[351051782,1738308644460,-500.0,0.00017123,2]
[351051783,1738308644470,-666.86,0.00017123,2]
[351051784,1738308644479,-500.0,0.00017123,2]
[351051785,1738308644488,-1268.91,0.00017123,2]
[351051786,1738308644497,-500.0,0.00017123,2]
[351051787,1738308644506,-500.0,0.00017123,2]
[351051788,1738308644516,-500.0,0.00017123,2]
[351051789,1738308644525,-500.0,0.00017123,2]
[351051790,1738308644534,-500.0,0.00017123,2]
[351051791,1738308644543,-500.0,0.00017123,2]
[351051792,1738308644552,-597.48,0.00017123,2]
[351051793,1738308644561,-3401.2,0.00017123,2]
[351051794,1738308644571,-500.0,0.00017123,2]
[351051795,1738308644581,-500.0,0.00017123,2]
[351051796,1738308644590,-500.0,0.00017123,2]
[351051797,1738308644600,-500.0,0.00017123,2]
[351051798,1738308644609,-500.0,0.00017123,2]
[351051799,1738308644619,-7437.37,0.00017123,2]
[351051800,1738308644629,-500.0,0.00017123,2]
[351051801,1738308644638,-500.0,0.00017123,2]
[351051802,1738308644647,-500.0,0.00017123,2]
[351051803,1738308644657,-540.18,0.00017123,2]
[351051804,1738308644666,-500.0,0.00017123,2]
[351051805,1738308644675,-216.85472622,0.0001718,2]
[351051806,1738308644684,-500.0,0.00017259,2]
[351051807,1738308644694,-500.0,0.00017259,2]
[351051808,1738308644703,-500.0,0.0001726,2]
[351051809,1738308644713,-500.0,0.0001726,2]
[351051810,1738308644722,-500.0,0.0001726,2]
[351051811,1738308644732,-500.0,0.0001726,2]
[351051812,1738308644741,-230.1,0.0001726,2]
[351051813,1738308644750,-500.0,0.0001726,2]
[351051814,1738308644759,-500.0,0.0001726,2]
[351051815,1738308644769,-500.0,0.0001726,2]
[351051816,1738308644778,-500.0,0.0001726,2]
[351051817,1738308644787,-500.0,0.0001726,2]
[351051818,1738308644797,-500.0,0.0001726,2]
[351051819,1738308644808,-500.0,0.0001726,2]
[351051820,1738308644818,-500.0,0.0001726,2]
[351051821,1738308644828,-500.0,0.0001726,2]
[351051822,1738308644837,-604.39,0.0001726,2]
[351051823,1738308644847,-500.0,0.0001726,2]
[351051824,1738308644857,-500.0,0.0001726,2]
[351051825,1738308644866,-500.0,0.0001726,2]
[351051826,1738308644875,-563.85,0.0001726,2]
[351051827,1738308644884,-500.0,0.0001726,2]
[351051828,1738308644895,-500.0,0.0001726,2]
[351051829,1738308644904,-500.0,0.0001726,2]
[351051830,1738308644915,-5330.68,0.0001726,2]
[351051831,1738308644924,-500.0,0.0001726,2]
[351051832,1738308644934,-500.0,0.0001726,2]
[351051833,1738308644943,-500.0,0.0001726,2]
[351051834,1738308644953,-500.0,0.0001726,2]
[351051835,1738308644963,-500.0,0.0001726,2]
[351051836,1738308644973,-666.86,0.0001726,2]
[351051837,1738308644983,-500.0,0.0001726,2]
[351051838,1738308644992,-1268.91,0.0001726,2]
[351051839,1738308645001,-500.0,0.0001726,2]
[351051840,1738308645011,-500.0,0.0001726,2]
[351051841,1738308645021,-500.0,0.0001726,2]
[351051842,1738308645031,-500.0,0.0001726,2]
[351051843,1738308645041,-588.58,0.0001726,2]
[351051844,1738308645050,-182.90557801,0.0001726,2]
[351051845,1738308645059,-597.48,0.0001726,2]
[351051846,1738308645068,-3401.2,0.0001726,2]
[351051847,1738308645079,-500.0,0.0001726,2]
[351051848,1738308645088,-500.0,0.0001726,2]
[351051849,1738308645097,-500.0,0.0001726,2]
[351051850,1738308645107,-500.0,0.0001726,2]
[351051851,1738308645116,-637.07,0.0001726,2]
[351051852,1738308645125,-7437.37,0.0001726,2]
[351051853,1738308645135,-500.0,0.0001726,2]
[351051854,1738308645144,-500.0,0.0001726,2]
[351051855,1738308645154,-511.05316783,0.0001726,2]
[351051856,1738308645164,-540.18,0.0001726,2]
[351051857,1738308645173,-500.0,0.0001726,2]
[351051858,1738308645182,-354.392988,0.0001726,2]
[351051859,1738308645192,-354.392988,0.0001726,2]
[351051860,1738308645202,-354.392988,0.0001726,2]
[351051861,1738308645212,-354.392988,0.0001726,2]
[351051862,1738308645221,-354.392988,0.0001726,2]
[351051863,1738308645230,-707.277371,0.0001726,2]
[351051864,1738308645240,-500.0,0.00017396,2]
[351051865,1738308645249,-500.0,0.00017397,2]
[351051866,1738308645258,-500.0,0.00017397,2]
[351051867,1738308645267,-500.0,0.00017397,2]
[351051868,1738308645277,-624.49,0.00017397,2]
[351051869,1738308645286,-500.0,0.00017397,2]
[351051870,1738308645296,-500.0,0.00017397,2]
[351051871,1738308645305,-500.0,0.00017397,2]
[351051872,1738308645315,-500.0,0.00017397,2]
[351051873,1738308645324,-500.0,0.00017397,2]
[351051874,1738308645334,-500.0,0.00017397,2]
[351051875,1738308645343,-500.0,0.00017397,2]
[351051876,1738308645353,-500.0,0.00017397,2]
[351051877,1738308645363,-500.0,0.00017397,2]
[351051878,1738308645372,-500.0,0.00017397,2]
[351051880,1738308645382,-5330.68,0.00017397,2]
[351051881,1738308645392,-500.0,0.00017397,2]
[351051882,1738308645402,-500.0,0.00017397,2]
[351051883,1738308645412,-500.0,0.00017397,2]
[351051884,1738308645422,-500.0,0.00017397,2]
[351051885,1738308645431,-500.0,0.00017397,2]
[351051886,1738308645441,-666.86,0.00017397,2]
[351051888,1738308645451,-500.0,0.00017397,2]
[351051889,1738308645461,-1268.91,0.00017397,2]
[351051891,1738308645471,-500.0,0.00017397,2]
[351051893,1738308645481,-500.0,0.00017397,2]
[351051894,1738308645491,-500.0,0.00017397,2]
[351051896,1738308645500,-500.0,0.00017397,2]
[351051897,1738308645511,-597.48,0.00017397,2]
[351051899,1738308645521,-3401.2,0.00017397,2]
[351051900,1738308645530,-387.29942581,0.00017397,2]
[351051901,1738308645539,-500.0,0.00017397,2]
[351051902,1738308645548,-500.0,0.00017397,2]
[351051903,1738308645558,-500.0,0.00017397,2]
[351051904,1738308645568,-7437.37,0.00017397,2]
[351051905,1738308645579,-500.0,0.00017397,2]
[351051906,1738308645589,-500.0,0.00017397,2]
[351051907,1738308645599,-540.18,0.00017397,2]
[351051908,1738308645609,-500.0,0.00017397,2]
[351051909,1738308645619,-158.4495135,0.00017452,2]
[351051910,1738308645629,-500.0,0.00017452,2]
[351051911,1738308645638,-500.0,0.00017533,2]
[351051912,1738308645647,-262.77,0.00017534,2]
[351051913,1738308645657,-500.0,0.00017534,2]
[351051914,1738308645667,-500.0,0.00017534,2]
[351051915,1738308645676,-500.0,0.00017534,2]
[351051916,1738308645686,-500.0,0.00017534,2]
[351051917,1738308645696,-500.0,0.00017534,2]
[351051919,1738308645705,-461.0,0.00017534,2]
[351051921,1738308645715,-500.0,0.00017534,2]
[351051923,1738308645724,-500.0,0.00017534,2]
[351051925,1738308645733,-500.0,0.00017534,2]
[351051926,1738308645742,-500.0,0.00017534,2]
[351051927,1738308645751,-500.0,0.00017534,2]
[351051928,1738308645760,-5330.68,0.00017534,2]
[351051929,1738308645769,-500.0,0.00017534,2]
[351051930,1738308645779,-500.0,0.00017534,2]
[351051931,1738308645788,-500.0,0.00017534,2]
[351051932,1738308645798,-500.0,0.00017534,2]
[351051933,1738308645809,-666.86,0.00017534,2]
[351051934,1738308645819,-500.0,0.00017534,2]
[351051936,1738308645830,-1268.91,0.00017534,2]
[351051937,1738308645840,-500.0,0.00017534,2]
[351051938,1738308645850,-500.0,0.00017534,2]
[351051939,1738308645859,-500.0,0.00017534,2]
[351051941,1738308645869,-500.0,0.00017534,2]
[351051942,1738308645879,-597.48,0.00017534,2]
[351051944,1738308645889,-3401.2,0.00017534,2]
[351051946,1738308645898,-500.0,0.00017534,2]
[351051947,1738308645908,-500.0,0.00017534,2]
[351051949,1738308645918,-500.0,0.00017534,2]
[351051951,1738308645927,-7437.37,0.00017534,2]
[351051953,1738308645936,-500.0,0.00017534,2]
[351051954,1738308645946,-500.0,0.00017534,2]
[351051956,1738308645956,-540.18,0.00017534,2]
[351051958,1738308645966,-500.0,0.00017534,2]
[351051960,1738308645975,-541.40174026,0.0001767,2]
[351051961,1738308645985,-500.0,0.00017671,2]
[351051962,1738308645994,-500.0,0.00017671,2]
[351051963,1738308646004,-500.0,0.00017671,2]
[351051964,1738308646013,-500.0,0.00017671,2]
[351051965,1738308646021,-623.34376296,0.00017671,2]
[351051966,1738308646031,-500.0,0.00017671,2]
[351051967,1738308646041,-500.0,0.00017671,2]
[351051968,1738308646051,-500.0,0.00017671,2]
[351051969,1738308646060,-500.0,0.00017671,2]
[351051970,1738308646070,-500.0,0.00017671,2]
[351051971,1738308646080,-5330.68,0.00017671,2]
[351051972,1738308646090,-500.0,0.00017671,2]
[351051973,1738308646099,-500.0,0.00017671,2]
[351051974,1738308646109,-500.0,0.00017671,2]
[351051975,1738308646118,-666.86,0.00017671,2]
[351051976,1738308646128,-500.0,0.00017671,2]
[351051977,1738308646138,-1268.91,0.00017671,2]
[351051978,1738308646147,-500.0,0.00017671,2]
[351051979,1738308646157,-500.0,0.00017671,2]
[351051980,1738308646167,-500.0,0.00017671,2]
[351051981,1738308646176,-500.0,0.00017671,2]
[351051982,1738308646185,-597.48,0.00017671,2]
[351051983,1738308646195,-3401.2,0.00017671,2]
[351051984,1738308646204,-228.54,0.00017671,2]
[351051985,1738308646213,-500.0,0.00017671,2]
[351051986,1738308646223,-500.0,0.00017671,2]
[351051987,1738308646232,-7437.37,0.00017671,2]
[351051988,1738308646241,-500.0,0.00017671,2]
[351051989,1738308646251,-500.0,0.00017671,2]
[351051990,1738308646260,-540.18,0.00017671,2]
[351051991,1738308646270,-500.0,0.00017671,2]
[351051992,1738308646279,-500.0,0.00017808,2]
[351051993,1738308646288,-500.0,0.00017808,2]
[351051994,1738308646298,-500.0,0.00017808,2]
[351051995,1738308646307,-500.0,0.00017808,2]
[351051996,1738308646316,-196.03949853,0.00017808,2]
[351051997,1738308646328,-340.61543002,0.00017808,2]
[351051998,1738308646338,-500.0,0.00017808,2]
[351051999,1738308646347,-500.0,0.00017808,2]
[351052000,1738308646356,-5330.68,0.00017808,2]
[351052001,1738308646366,-500.0,0.00017808,2]
[351052002,1738308646376,-625.54,0.00017808,2]
[351052003,1738308646385,-500.0,0.00017808,2]
[351052004,1738308646395,-666.86,0.00017808,2]
[351052005,1738308646404,-500.0,0.00017808,2]
[351052006,1738308646414,-1268.91,0.00017808,2]
[351052007,1738308646423,-500.0,0.00017808,2]
[351052008,1738308646432,-248.70691342,0.00017808,2]
[351052009,1738308646441,-500.0,0.00017808,2]
[351052010,1738308646450,-500.0,0.00017808,2]
[351052011,1738308646459,-597.48,0.00017808,2]
[351052012,1738308646469,-3401.2,0.00017808,2]
[351052013,1738308646478,-497.68,0.00017808,2]
[351052014,1738308646488,-500.0,0.00017808,2]
[351052015,1738308646498,-7437.37,0.00017808,2]
[351052016,1738308646507,-500.0,0.00017808,2]
[351052017,1738308646517,-500.0,0.00017808,2]
[351052018,1738308646526,-540.18,0.00017808,2]
[351052019,1738308646536,-500.0,0.00017808,2]
[351052020,1738308646546,-397.206,0.00017941,2]
[351052021,1738308646555,-510.37,0.00017945,2]
[351052022,1738308646564,-500.0,0.00017945,2]
[351052023,1738308646575,-500.0,0.00017945,2]
[351052024,1738308646584,-500.0,0.00017945,2]
[351052025,1738308646594,-500.0,0.00017945,2]
[351052026,1738308646604,-387.84362304,0.00017945,2]
[351052027,1738308646825,-112.15637696,0.00017945,2]
[351052028,1738308646834,-5330.68,0.00017945,2]
[351052029,1738308646844,-467.06449941,0.00017945,2]
[351052030,1738308646855,-500.0,0.00017945,2]
[351052031,1738308646864,-666.86,0.00017945,2]
[351052032,1738308646874,-500.0,0.00017945,2]
[351052033,1738308646884,-1268.91,0.00017945,2]
[351052034,1738308646894,-500.0,0.00017945,2]
[351052035,1738308646904,-500.0,0.00017945,2]
[351052036,1738308646915,-500.0,0.00017945,2]
[351052037,1738308646924,-597.48,0.00017945,2]
[351052038,1738308646934,-3401.2,0.00017945,2]
[351052039,1738308646943,-500.0,0.00017945,2]
[351052040,1738308646953,-7437.37,0.00017945,2]
[351052041,1738308646962,-500.0,0.00017945,2]
[351052042,1738308646971,-500.0,0.00017945,2]
[351052043,1738308646980,-540.18,0.00017945,2]
[351052044,1738308646990,-500.0,0.00017945,2]
[351052045,1738308647000,-420.0,0.00017963,2]
[351052046,1738308647009,-621.0,0.00018,2]
[351052047,1738308647019,-192.29,0.00018082,2]
[351052048,1738308647029,-500.0,0.00018082,2]
[351052049,1738308647039,-500.0,0.00018082,2]
[351052050,1738308647048,-500.0,0.00018082,2]
[351052051,1738308647058,-500.0,0.00018082,2]
[351052052,1738308647068,-5330.68,0.00018082,2]
[351052053,1738308647079,-259.87,0.00018082,2]
[351052054,1738308647088,-666.86,0.00018082,2]
[351052055,1738308647098,-583.42437407,0.00018082,2]
[351052056,1738308647107,-1268.91,0.00018082,2]
[351052057,1738308647116,-500.0,0.00018082,2]
[351052058,1738308647126,-500.0,0.00018082,2]
[351052059,1738308647135,-500.0,0.00018082,2]
[351052060,1738308647144,-597.48,0.00018082,2]
[351052061,1738308647154,-3401.2,0.00018082,2]
[351052062,1738308647163,-500.0,0.00018082,2]
[351052063,1738308647173,-7437.37,0.00018082,2]
[351052064,1738308647182,-500.0,0.00018082,2]
[351052065,1738308647191,-500.0,0.00018082,2]
[351052066,1738308647200,-540.18,0.00018082,2]
[351052067,1738308647210,-500.0,0.00018082,2]
[351052068,1738308647219,-500.0,0.00018219,2]
[351052069,1738308647228,-500.0,0.00018219,2]
[351052070,1738308647237,-500.0,0.00018219,2]
[351052071,1738308647247,-500.0,0.00018219,2]
[351052072,1738308647256,-5330.68,0.00018219,2]
[351052073,1738308647265,-666.86,0.00018219,2]
[351052074,1738308647275,-1268.91,0.00018219,2]
[351052075,1738308647284,-505.87,0.00018219,2]
[351052076,1738308647294,-500.0,0.00018219,2]
[351052077,1738308647303,-500.0,0.00018219,2]
[351052078,1738308647312,-597.48,0.00018219,2]
[351052079,1738308647322,-3401.2,0.00018219,2]
[351052080,1738308647333,-500.0,0.00018219,2]
[351052081,1738308647342,-7437.37,0.00018219,2]
[351052082,1738308647351,-500.0,0.00018219,2]
[351052083,1738308647361,-500.0,0.00018219,2]
[351052084,1738308647371,-540.18,0.00018219,2]
[351052085,1738308647381,-500.0,0.00018219,2]
[351052086,1738308647390,-294.0,0.000183,2]
[351052087,1738308647400,-500.0,0.00018356,2]
[351052088,1738308647409,-500.0,0.00018356,2]
[351052089,1738308647419,-500.0,0.00018356,2]
[351052090,1738308647429,-5330.68,0.00018356,2]
[351052091,1738308647439,-666.86,0.00018356,2]
[351052092,1738308647449,-1268.91,0.00018356,2]
[351052093,1738308647459,-500.0,0.00018356,2]
[351052094,1738308647471,-500.0,0.00018356,2]
[351052095,1738308647481,-597.48,0.00018356,2]
[351052096,1738308647490,-3401.2,0.00018356,2]
[351052097,1738308647500,-500.0,0.00018356,2]
[351052098,1738308647510,-7437.37,0.00018356,2]